Cogmind - Beta 17.1 @@@ ROGUE MODE // 2026.09.06 @ 23:23:44 Player: obl-vn Result: Destroyed by B-99 Colossus with Multirail Performance ------------- Evolutions (9) 4500 Regions Visited (17) 3400 Robots Destroyed (0) 0 Value Destroyed (10) 10 Prototype IDs (23) 460 Alien Tech Used (0) 0 Bonus (9006) 9006 TOTAL SCORE: 17376 Bonus ------- Pacifist 7706 Entered DSFs 1000 Aligned with FarCom 300 Cogmind --------- Core Integrity 0/1600 Matter 264/300 Energy 77/100 System Corruption 3% Temperature Cool (0) Movement Core (50) Location -1/Access Parts ------- > --- POWER (1) -------- (None) > --- PROPULSION (2) --- (None) > --- UTILITY (20) ----- Graphene Brace Skeleton Box > --- WEAPON (2) ------- (None) > --- INVENTORY (5) ---- High-capacity Matter Pod (200) Peak State ------------ > --- POWER ------------ (None) > --- PROPULSION ------- (None) > --- UTILITY ---------- Graphene Brace > --- WEAPON ----------- Enhanced Nova Cannon > --- INVENTORY -------- High-capacity Matter Pod Skeleton Box [Rating: 16] Favorites ----------- Power None Propulsion None Utility Utility Shielding Device Graphene Brace Processor Advanced Terrain Scan Processor Hackware System Shield Protection Utility Shielding Weapon Enhanced Nova Cannon Energy Cannon Enhanced Nova Cannon Build | -11 -10 -10 -10 -9 -8 -7 -7 -7 -6 -5 -5 -4 -4 -3 -2 -2 -1 ------- Run | Yrd Mat Min Exi Min Mat Fac Low Low Fac Fac Ext Fac DSF Res Res DSF Acc Slots Evolved 18 | . . . . . 4 2 . . 2 2 . 2 . 2 2 . 2 Power . | . . . . . . . . . . . . . . . . . . Propulsion . | . . . . . . . . . . . . . . . . . . Utility 18 | . . . . . 4 2 . . 2 2 . 2 . 2 2 . 2 Weapon . | . . . . . . . . . . . . . . . . . . Parts Attached 9 | . 1 . . 1 . 2 . . 1 . . . . 1 1 . 2 Power . | . . . . . . . . . . . . . . . . . . Engine . | . . . . . . . . . . . . . . . . . . Core . | . . . . . . . . . . . . . . . . . . Reactor . | . . . . . . . . . . . . . . . . . . Propulsion . | . . . . . . . . . . . . . . . . . . Treads . | . . . . . . . . . . . . . . . . . . Leg . | . . . . . . . . . . . . . . . . . . Wheel . | . . . . . . . . . . . . . . . . . . Hover . | . . . . . . . . . . . . . . . . . . Flight . | . . . . . . . . . . . . . . . . . . Utility 8 | . 1 . . 1 . 2 . . 1 . . . . 1 1 . 1 Device 2 | . . . . . . . . . . . . . . 1 . . 1 Storage . | . . . . . . . . . . . . . . . . . . Processor 2 | . . . . 1 . 1 . . . . . . . . . . . Hackware 3 | . . . . . . 1 . . 1 . . . . . 1 . . Protection 1 | . 1 . . . . . . . . . . . . . . . . Artifact . | . . . . . . . . . . . . . . . . . . Weapon 1 | . . . . . . . . . . . . . . . . . 1 Energy Gun . | . . . . . . . . . . . . . . . . . . Energy Cannon 1 | . . . . . . . . . . . . . . . . . 1 Ballistic Gun . | . . . . . . . . . . . . . . . . . . Ballistic Cannon . | . . . . . . . . . . . . . . . . . . Launcher . | . . . . . . . . . . . . . . . . . . Special Weapon . | . . . . . . . . . . . . . . . . . . Impact Weapon . | . . . . . . . . . . . . . . . . . . Slashing Weapon . | . . . . . . . . . . . . . . . . . . Piercing Weapon . | . . . . . . . . . . . . . . . . . . Special Melee Weapon . | . . . . . . . . . . . . . . . . . . Unidentified Prototypes . | . . . . . . . . . . . . . . . . . . Parts Lost 5 | . . . . . . . . . . . . . 3 . . . 2 Power . | . . . . . . . . . . . . . . . . . . Propulsion . | . . . . . . . . . . . . . . . . . . Utility 4 | . . . . . . . . . . . . . 3 . . . 1 Weapon 1 | . . . . . . . . . . . . . . . . . 1 Highest Loss Streak 3 | . . . . . . . . . . . . . 3 . . . 2 To Critical Strikes . | . . . . . . . . . . . . . . . . . . Average Backups 2 | . . 1 1 2 2 2 2 2 2 2 2 2 2 2 2 3 2 Power . | . . . . . . . . . . . . . . . . . . Propulsion . | . . . . . . . . . . . . . . . . . . Utility . | . . 1 1 1 1 1 1 1 1 1 1 1 1 1 1 1 1 Weapon . | . . . . . . . . . . . . . . . . 1 . Tool/Special . | . . . . . . . . . . . . . . . . . . Unused Backups 1 | . . . . . . . . . . . . . . . . . 1 Power . | . . . . . . . . . . . . . . . . . . Propulsion . | . . . . . . . . . . . . . . . . . . Utility 1 | . . . . . . . . . . . . . . . . . 1 Weapon . | . . . . . . . . . . . . . . . . . . Tool/Special . | . . . . . . . . . . . . . . . . . . Average Slot Usage (%) 15 | . 6 14 14 21 18 22 30 30 26 29 29 26 17 3 4 8 7 Device 1 | . . . . . . . . . . . . . . 3 4 4 4 Processor 4 | . . . . 7 9 8 15 15 13 11 11 10 6 . . . . Hackware 3 | . . . . . . 5 7 7 6 11 11 10 6 . . 4 3 Protection 5 | . 6 14 14 14 9 7 7 7 6 5 5 5 3 . . . . Peak Build Rating 16 | . 1 1 1 5 5 11 11 11 14 14 14 14 14 7 14 14 16 Average Rating 7 | . . 1 1 3 5 8 11 11 11 14 13 14 8 6 8 14 13 On Entrance 7 | . . 1 1 1 5 5 11 11 11 14 14 14 14 . 7 14 14 Avg Prop Armor Cover (%) . | . . . . . . . . . . . . . . . . . . Naked Turns 110 | . 82 . . . . . . . . . . . 21 7 . . . Heaviest Build 1 | . 1 1 1 1 1 1 1 1 1 1 1 1 1 1 1 1 1 Greatest Support 3 | 3 3 3 3 3 3 3 3 3 3 3 3 3 3 3 3 3 3 Greatest Overweight (x) . | . . . . . . . . . . . . . . . . . . Average Overweight (x) . | . . . . . . . . . . . . . . . . . . Largest Inventory Capacity 5 | 5 5 5 5 5 5 5 5 5 5 5 5 5 5 5 5 5 5 Average Capacity 5 | 5 5 5 5 5 5 5 5 5 5 5 5 5 5 5 5 5 5 Most Carried 3 | . 1 1 2 2 2 2 2 2 2 2 2 2 2 2 3 3 3 Average Carried 2 | . . 1 1 2 2 2 2 2 2 2 2 2 2 2 2 3 2 Final Capacity 5 | 5 5 5 5 5 5 5 5 5 5 5 5 5 5 5 5 5 5 Final Carried 3 | . 1 1 2 2 2 2 2 2 2 2 2 2 2 2 3 3 1 Class Distribution -------------------- 90% | Mutant 9% | Hacker-Mutant Dominant Class ---------------- Mutant | -10/Materials Mutant | -10/Mines Mutant | -10/Exiles Mutant | -9/Mines Mutant | -8/Materials Mutant | -7/Factory Mutant | -7/Lower Caves Mutant | -7/Lower Caves Mutant | -6/Factory Hacker-Mutant | -5/Factory Hacker-Mutant | -5/Extension Hacker-Mutant | -4/Factory Hacker-Mutant | -4/DSF Mutant | -3/Research Mutant | -2/Research Mutant | -2/DSF Mutant | -1/Access Resources | -11 -10 -10 -10 -9 -8 -7 -7 -7 -6 -5 -5 -4 -4 -3 -2 -2 -1 ----------- Run | Yrd Mat Min Exi Min Mat Fac Low Low Fac Fac Ext Fac DSF Res Res DSF Acc Matter Collected 430 | 197 20 120 . . 74 . . . . . 2 . 6 . . 6 5 Remotely . | . . . . . . . . . . . . . . . . . . Salvage Created . | . . . . . . . . . . . . . . . . . . Parts . | . . . . . . . . . . . . . . . . . . Haulers Intercepted . | . . . . . . . . . . . . . . . . . . Recyclers Shooed . | . . . . . . . . . . . . . . . . . . Parts Field Recycled . | . . . . . . . . . . . . . . . . . . Retrieved Matter . | . . . . . . . . . . . . . . . . . . Parts Self-Destructed . | . . . . . . . . . . . . . . . . . . Prevented . | . . . . . . . . . . . . . . . . . . Parts Restored . | . . . . . . . . . . . . . . . . . . Kills | -11 -10 -10 -10 -9 -8 -7 -7 -7 -6 -5 -5 -4 -4 -3 -2 -2 -1 ------- Run | Yrd Mat Min Exi Min Mat Fac Low Low Fac Fac Ext Fac DSF Res Res DSF Acc Combat Hostiles Destroyed . | . . . . . . . . . . . . . . . . . . Classes Destroyed . | . . . . . . . . . . . . . . . . . . Best Kill Streak . | . . . . . . . . . . . . . . . . . . Combat Bots Only . | . . . . . . . . . . . . . . . . . . Max Kills in Single Turn . | . . . . . . . . . . . . . . . . . . Gunslinging . | . . . . . . . . . . . . . . . . . . Exploded . | . . . . . . . . . . . . . . . . . . Melee . | . . . . . . . . . . . . . . . . . . Uniques/NPCs Destroyed . | . . . . . . . . . . . . . . . . . . Combat | -11 -10 -10 -10 -9 -8 -7 -7 -7 -6 -5 -5 -4 -4 -3 -2 -2 -1 -------- Run | Yrd Mat Min Exi Min Mat Fac Low Low Fac Fac Ext Fac DSF Res Res DSF Acc Hostile Shots Fired 347 | . . 10 . . 42 9 50 . . . 23 . 54 2 . 22 135 Missed 129 | . . 4 . . 22 5 28 . . . 6 . 14 1 . 9 40 Hits 218 | . . 6 . . 20 4 22 . . . 17 . 40 1 . 13 95 Melee 26 | . . . . . . . . . . . . . 20 . . 6 . Projectile 192 | . . 6 . . 20 4 22 . . . 17 . 20 1 . 7 95 AOE 7 | . . 2 . . . . . . . . . . 2 . . 3 . Critical Strikes 19 | . . . . . 1 . . . . . 2 . 9 . . 4 3 Actively Blocked 7 | . . . . . . . . . . . . . . . . 4 3 Damage Taken 4704 | . 17 149 . . 191 28 206 . . . 420 . 1027 25 . 795 1846 Core 4379 | . 17 149 . . 191 23 200 . . . 420 . 973 25 . 778 1603 Absorbed by Shields 111 | . . . . . . . . . . . . . 111 . . . . Redirected to Shielding 28 | . . . . . . 1 1 . . . . . 26 . . . . Core Remaining (%) 64 | 100 . . . 33 65 . . 68 100 . 58 . 15 98 . 46 . Volleys Fired 1 | . . . . . . . . . . . . . . . . . 1 Largest 1 | . . . . . . . . . . . . . . . . . 1 Hottest 120 | . . . . . . . . . . . . . . . . . 120 Shots Fired 1 | . . . . . . . . . . . . . . . . . 1 Gun . | . . . . . . . . . . . . . . . . . . Cannon 1 | . . . . . . . . . . . . . . . . . 1 Launcher . | . . . . . . . . . . . . . . . . . . Special . | . . . . . . . . . . . . . . . . . . Kinetic . | . . . . . . . . . . . . . . . . . . Thermal 1 | . . . . . . . . . . . . . . . . . 1 Explosive . | . . . . . . . . . . . . . . . . . . Electromagnetic . | . . . . . . . . . . . . . . . . . . Robot Hit Streak . | . . . . . . . . . . . . . . . . . . Robot Miss Streak . | . . . . . . . . . . . . . . . . . . Penetration Max . | . . . . . . . . . . . . . . . . . . Secondary Targets . | . . . . . . . . . . . . . . . . . . Shots Hit Robots . | . . . . . . . . . . . . . . . . . . Core Hits 1 | . . . . . 1 . . . . . . . . . . . . Critical Kills . | . . . . . . . . . . . . . . . . . . Critical Parts Destroyed . | . . . . . . . . . . . . . . . . . . Critical Strikes . | . . . . . . . . . . . . . . . . . . Melee Attacks . | . . . . . . . . . . . . . . . . . . Impact . | . . . . . . . . . . . . . . . . . . Slashing . | . . . . . . . . . . . . . . . . . . Piercing . | . . . . . . . . . . . . . . . . . . Sneak Attacks . | . . . . . . . . . . . . . . . . . . Combat Hostiles . | . . . . . . . . . . . . . . . . . . Follow-up Attacks . | . . . . . . . . . . . . . . . . . . Damage Inflicted 24 | . 9 . . . 15 . . . . . . . . . . . . Guns . | . . . . . . . . . . . . . . . . . . Cannons . | . . . . . . . . . . . . . . . . . . Explosions . | . . . . . . . . . . . . . . . . . . Melee . | . . . . . . . . . . . . . . . . . . Ramming 24 | . 9 . . . 15 . . . . . . . . . . . . Kinetic . | . . . . . . . . . . . . . . . . . . Thermal . | . . . . . . . . . . . . . . . . . . Explosive . | . . . . . . . . . . . . . . . . . . Electromagnetic . | . . . . . . . . . . . . . . . . . . Impact . | . . . . . . . . . . . . . . . . . . Slashing . | . . . . . . . . . . . . . . . . . . Piercing . | . . . . . . . . . . . . . . . . . . Highest Corruption 3 | . 3 3 3 3 . . . . . . . . . . . . 3 Average Corruption 2 | . 3 3 3 3 . . . . . . . . . . . . 2 Corruption Purged . | . . . . . . . . . . . . . . . . . . Corruption Blocked . | . . . . . . . . . . . . . . . . . . Effects 4 | . 1 . 1 1 . . . . . . . . . . . . 1 Message Errors 3 | . 1 . 1 . . . . . . . . . . . . . 1 Heat Flow Errors 1 | . . . . 1 . . . . . . . . . . . . . Overload Shots . | . . . . . . . . . . . . . . . . . . Overflow Damage . | . . . . . . . . . . . . . . . . . . Projectiles . | . . . . . . . . . . . . . . . . . . Explosions . | . . . . . . . . . . . . . . . . . . Melee . | . . . . . . . . . . . . . . . . . . Knockbacks . | . . . . . . . . . . . . . . . . . . Impact . | . . . . . . . . . . . . . . . . . . Kinetic . | . . . . . . . . . . . . . . . . . . Secondary . | . . . . . . . . . . . . . . . . . . Self-Inflicted Damage 11 | . 4 . . . 7 . . . . . . . . . . . . Shots . | . . . . . . . . . . . . . . . . . . Rammed 4 | . 2 . . . 2 . . . . . . . . . . . . Targets Rammed 4 | . 2 . . . 2 . . . . . . . . . . . . Kicked . | . . . . . . . . . . . . . . . . . . Crushed . | . . . . . . . . . . . . . . . . . . Highest Temperature 167 | . . . . 167 . . . . . . . . . . . . 25 Average Temperature 75 | . . . . 92 . . . . . . . . . . . . 16 Received Heat Transfer 275 | . . 30 . . 9 6 84 . . . 54 . 74 . . . 18 Siege Activations . | . . . . . . . . . . . . . . . . . . Martial Activations . | . . . . . . . . . . . . . . . . . . Shielding Activations . | . . . . . . . . . . . . . . . . . . Robots Disrupted . | . . . . . . . . . . . . . . . . . . Combat Hostiles . | . . . . . . . . . . . . . . . . . . Robots Corrupted . | . . . . . . . . . . . . . . . . . . Combat Hostiles . | . . . . . . . . . . . . . . . . . . Parts Fried . | . . . . . . . . . . . . . . . . . . Impact Corruptions . | . . . . . . . . . . . . . . . . . . Robots Melted . | . . . . . . . . . . . . . . . . . . Combat Hostiles . | . . . . . . . . . . . . . . . . . . Parts Melted . | . . . . . . . . . . . . . . . . . . Heat Transferred . | . . . . . . . . . . . . . . . . . . Parts Sabotaged . | . . . . . . . . . . . . . . . . . . Parts Stolen . | . . . . . . . . . . . . . . . . . . Parts Stripped . | . . . . . . . . . . . . . . . . . . Power Chain Reactions . | . . . . . . . . . . . . . . . . . . Alert | -11 -10 -10 -10 -9 -8 -7 -7 -7 -6 -5 -5 -4 -4 -3 -2 -2 -1 ------- Run | Yrd Mat Min Exi Min Mat Fac Low Low Fac Fac Ext Fac DSF Res Res DSF Acc Maximum Alert Level . | . . . . . . . . . . . . . . . . . . Low Security (%) 100 | 100 100 100 . 100 100 100 . . 100 100 100 100 100 100 100 100 100 Level 1 . | . . . . . . . . . . . . . . . . . . Level 2 . | . . . . . . . . . . . . . . . . . . Level 3 . | . . . . . . . . . . . . . . . . . . Level 4 . | . . . . . . . . . . . . . . . . . . Level 5 . | . . . . . . . . . . . . . . . . . . High Security . | . . . . . . . . . . . . . . . . . . Max Security . | . . . . . . . . . . . . . . . . . . Peak Influence 60 | . . 60 . . 15 . . . . . 6 2 16 8 . 2 26 Initial 8 | . . . . . . . . . . . . 2 1 8 . 2 . Average 3 | . . 33 . . 3 . . . . . . 2 2 . . 2 5 Influence Increases 255 | . . 90 . . 15 . 45 . . . 6 . 30 . 3 . 66 Successful Hack 45 | . . . . . 15 . . . . . 6 . . . 3 . 21 Disable Machine 15 | . . . . . . . . . . . . . . . . . 15 Partial Spotted 30 | . . . . . . . . . . . . . . . . . 30 Lose Combat Pursuer 165 | . . 90 . . . . 45 . . . . . 30 . . . . Influence Decreases 255 | . . 60 30 . 15 . 30 15 . . . 4 17 15 . 1 68 Entered New Map 49 | . . . 30 . . . . 4 . . . 4 1 7 . 1 2 Time Decay 180 | . . 60 . . 15 . 30 11 . . . . . 8 . . 56 Lost Part 26 | . . . . . . . . . . . . . 16 . . . 10 Squads Dispatched 11 | . . . . . 2 . . . . . . . 1 1 3 1 3 Investigation 3 | . . . . . 1 . . . . . . . . . 2 . . Extermination 2 | . . . . . . . . . . . . . . . 1 . 1 Reinforcement 6 | . . . . . 1 . . . . . . . 1 1 . 1 2 Assault . | . . . . . . . . . . . . . . . . . . Garrison . | . . . . . . . . . . . . . . . . . . Intercept . | . . . . . . . . . . . . . . . . . . Searches Triggered . | . . . . . . . . . . . . . . . . . . Construction Impeded . | . . . . . . . . . . . . . . . . . . Haulers Reinforced . | . . . . . . . . . . . . . . . . . . Active Scanning Responses . | . . . . . . . . . . . . . . . . . . Cargo Convoy Interrupts . | . . . . . . . . . . . . . . . . . . Stealth | -11 -10 -10 -10 -9 -8 -7 -7 -7 -6 -5 -5 -4 -4 -3 -2 -2 -1 --------- Run | Yrd Mat Min Exi Min Mat Fac Low Low Fac Fac Ext Fac DSF Res Res DSF Acc Distress Signals 3 | . 1 . . . 2 . . . . . . . . . . . . Communications Jammed . | . . . . . . . . . . . . . . . . . . Distress Signals . | . . . . . . . . . . . . . . . . . . Times Spotted 69 | . 1 16 . . 17 1 4 . . . 5 . 7 3 . 4 11 Peak Tracking Total 13 | . 1 10 . . 13 1 4 . . . 5 . 6 3 . 4 8 Tactical Retreats 6 | . . 3 . . . . 1 . . . . . 2 . . . . Traps | -11 -10 -10 -10 -9 -8 -7 -7 -7 -6 -5 -5 -4 -4 -3 -2 -2 -1 ------- Run | Yrd Mat Min Exi Min Mat Fac Low Low Fac Fac Ext Fac DSF Res Res DSF Acc Traps Triggered 6 | . 3 . . . . . . . . . . . 3 . . . . Indirectly . | . . . . . . . . . . . . . . . . . . Trap Hack Attempts . | . . . . . . . . . . . . . . . . . . Triggered . | . . . . . . . . . . . . . . . . . . Disarmed . | . . . . . . . . . . . . . . . . . . Reprogrammed . | . . . . . . . . . . . . . . . . . . Reused . | . . . . . . . . . . . . . . . . . . Traps Extracted . | . . . . . . . . . . . . . . . . . . Installed . | . . . . . . . . . . . . . . . . . . Triggered . | . . . . . . . . . . . . . . . . . . Machines | -11 -10 -10 -10 -9 -8 -7 -7 -7 -6 -5 -5 -4 -4 -3 -2 -2 -1 ---------- Run | Yrd Mat Min Exi Min Mat Fac Low Low Fac Fac Ext Fac DSF Res Res DSF Acc Machines Disabled 1 | . . . . . . . . . . . . . . . . . 1 Max in Single Turn 1 | . . . . . . . . . . . . . . . . . 1 Machines Repaired . | . . . . . . . . . . . . . . . . . . Machines Dismantled . | . . . . . . . . . . . . . . . . . . Machines Sabotaged . | . . . . . . . . . . . . . . . . . . Overloaded Fab Kills . | . . . . . . . . . . . . . . . . . . Hacking | -11 -10 -10 -10 -9 -8 -7 -7 -7 -6 -5 -5 -4 -4 -3 -2 -2 -1 --------- Run | Yrd Mat Min Exi Min Mat Fac Low Low Fac Fac Ext Fac DSF Res Res DSF Acc Machines Accessed 12 | . 1 . 2 1 2 . . . . . 1 1 . . 3 . 1 Terminals 8 | . 1 . . . 2 . . . . . 1 1 . . 2 . 1 Fabricators . | . . . . . . . . . . . . . . . . . . Repair Stations . | . . . . . . . . . . . . . . . . . . Recycling Units . | . . . . . . . . . . . . . . . . . . Scanalyzers . | . . . . . . . . . . . . . . . . . . Garrison Access 1 | . . . . . . . . . . . . . . . 1 . . Total Hacks 30 | . 4 . 2 1 7 . . . . . 1 2 . . 11 . 2 Successful 9 | . . . 2 1 2 . . . . . 1 1 . . 1 . 1 Failed 21 | . 4 . . . 5 . . . . . . 1 . . 10 . 1 Catastrophic 2 | . . . . . 2 . . . . . . . . . . . . Database Lockouts . | . . . . . . . . . . . . . . . . . . Manual 11 | . 4 . 1 . . . . . . . . . . . 5 . 1 Terminals 23 | . 4 . . . 7 . . . . . 1 2 . . 7 . 2 Fabricators . | . . . . . . . . . . . . . . . . . . Repair Stations . | . . . . . . . . . . . . . . . . . . Recycling Units . | . . . . . . . . . . . . . . . . . . Scanalyzers . | . . . . . . . . . . . . . . . . . . Garrison Access 4 | . . . . . . . . . . . . . . . 4 . . Terminal Hacks 8 | . . . 2 1 2 . . . . . 1 1 . . 1 . . Record 1 | . . . 1 . . . . . . . . . . . . . . Open Door 2 | . . . . 1 . . . . . . 1 . . . . . . Open DSF 2 | . . . . . . . . . . . . 1 . . 1 . . Level Access Points 1 | . . . . . 1 . . . . . . . . . . . . Branch Access Points 1 | . . . . . 1 . . . . . . . . . . . . Proto ID Catalog 1 | . . . 1 . . . . . . . . . . . . . . Fabricator Hacks . | . . . . . . . . . . . . . . . . . . Repair Station Hacks . | . . . . . . . . . . . . . . . . . . Recycling Unit Hacks . | . . . . . . . . . . . . . . . . . . Scanalyzer . | . . . . . . . . . . . . . . . . . . Garrison Access Hacks . | . . . . . . . . . . . . . . . . . . Unauthorized Hacks 1 | . . . . . . . . . . . . . . . . . 1 Terminals 1 | . . . . . . . . . . . . . . . . . 1 Botnet 1 | . . . . . . . . . . . . . . . . . 1 Fabricators . | . . . . . . . . . . . . . . . . . . Repair Stations . | . . . . . . . . . . . . . . . . . . Recycling Units . | . . . . . . . . . . . . . . . . . . Scanalyzers . | . . . . . . . . . . . . . . . . . . Garrison Access . | . . . . . . . . . . . . . . . . . . Data Cores Recovered . | . . . . . . . . . . . . . . . . . . Used . | . . . . . . . . . . . . . . . . . . Hacking Detections 8 | . 1 . . . 2 . . . . . . 1 . . 3 . 1 Full Trace Events 3 | . . . . . 1 . . . . . . . . . 2 . . Feedback Events . | . . . . . . . . . . . . . . . . . . Feedback Blocked . | . . . . . . . . . . . . . . . . . . Robot Schematics Acquired . | . . . . . . . . . . . . . . . . . . Robots Built . | . . . . . . . . . . . . . . . . . . Authchips . | . . . . . . . . . . . . . . . . . . Time . | . . . . . . . . . . . . . . . . . . Total Robot Build Rating . | . . . . . . . . . . . . . . . . . . Part Schematics Acquired . | . . . . . . . . . . . . . . . . . . Parts Built . | . . . . . . . . . . . . . . . . . . Authchips . | . . . . . . . . . . . . . . . . . . Time . | . . . . . . . . . . . . . . . . . . Total Part Build Rating . | . . . . . . . . . . . . . . . . . . Part Studies Acquired . | . . . . . . . . . . . . . . . . . . Parts Repaired . | . . . . . . . . . . . . . . . . . . Time . | . . . . . . . . . . . . . . . . . . Parts Recycled . | . . . . . . . . . . . . . . . . . . Recycled Matter . | . . . . . . . . . . . . . . . . . . Retrieved Matter . | . . . . . . . . . . . . . . . . . . Retrieved Components . | . . . . . . . . . . . . . . . . . . Parts Scanalyzed . | . . . . . . . . . . . . . . . . . . Part Schematics Acquired . | . . . . . . . . . . . . . . . . . . Parts Damaged . | . . . . . . . . . . . . . . . . . . Bothacking | -11 -10 -10 -10 -9 -8 -7 -7 -7 -6 -5 -5 -4 -4 -3 -2 -2 -1 ------------ Run | Yrd Mat Min Exi Min Mat Fac Low Low Fac Fac Ext Fac DSF Res Res DSF Acc Used RIF Installer . | . . . . . . . . . . . . . . . . . . Robots Hacked . | . . . . . . . . . . . . . . . . . . Non-combat . | . . . . . . . . . . . . . . . . . . Combat . | . . . . . . . . . . . . . . . . . . Robot Hacks Applied . | . . . . . . . . . . . . . . . . . . Relay Couplers Released . | . . . . . . . . . . . . . . . . . . Fabnet Peak Effective % . | . . . . . . . . . . . . . . . . . . Robots Rewired . | . . . . . . . . . . . . . . . . . . Allies Hacked . | . . . . . . . . . . . . . . . . . . Hacks Repelled . | . . . . . . . . . . . . . . . . . . Allies | -11 -10 -10 -10 -9 -8 -7 -7 -7 -6 -5 -5 -4 -4 -3 -2 -2 -1 -------- Run | Yrd Mat Min Exi Min Mat Fac Low Low Fac Fac Ext Fac DSF Res Res DSF Acc Total Allies . | . . . . . . . . . . . . . . . . . . Largest Group . | . . . . . . . . . . . . . . . . . . Highest-Rated Group . | . . . . . . . . . . . . . . . . . . Highest-Rated Ally . | . . . . . . . . . . . . . . . . . . Total Orders . | . . . . . . . . . . . . . . . . . . Ally Attacks . | . . . . . . . . . . . . . . . . . . Total Damage . | . . . . . . . . . . . . . . . . . . Kills . | . . . . . . . . . . . . . . . . . . Allies Corrupted . | . . . . . . . . . . . . . . . . . . Allies Melted . | . . . . . . . . . . . . . . . . . . Intel | -11 -10 -10 -10 -9 -8 -7 -7 -7 -6 -5 -5 -4 -4 -3 -2 -2 -1 ------- Run | Yrd Mat Min Exi Min Mat Fac Low Low Fac Fac Ext Fac DSF Res Res DSF Acc Active Infowar (turns) 594 | . . . . . . 44 82 46 251 47 51 16 57 . . . . Machine Analysis 594 | . . . . . . 44 82 46 251 47 51 16 57 . . . . Robot Analysis Total . | . . . . . . . . . . . . . . . . . . Derelict Logs Recovered 5 | . . 2 . 1 . . 1 1 . . . . . . . . . Drone Launches . | . . . . . . . . . . . . . . . . . . Drone Recoveries . | . . . . . . . . . . . . . . . . . . Exploration | -11 -10 -10 -10 -9 -8 -7 -7 -7 -6 -5 -5 -4 -4 -3 -2 -2 -1 ------------- Run | Yrd Mat Min Exi Min Mat Fac Low Low Fac Fac Ext Fac DSF Res Res DSF Acc Turns Passed 2031 | 9 163 154 114 76 61 179 82 46 251 47 51 16 78 159 330 28 187 Spaces Moved 3449 | 19 269 257 226 107 111 282 163 91 474 94 98 31 125 283 415 56 348 Core 3449 | 19 269 257 226 107 111 282 163 91 474 94 98 31 125 283 415 56 348 Treads . | . . . . . . . . . . . . . . . . . . Legs . | . . . . . . . . . . . . . . . . . . Wheels . | . . . . . . . . . . . . . . . . . . Hover . | . . . . . . . . . . . . . . . . . . Flight . | . . . . . . . . . . . . . . . . . . Fastest Speed 50 | 50 50 50 50 50 50 50 50 50 50 50 50 50 50 50 50 50 50 Average Speed 50 | 50 50 50 50 50 50 50 50 50 50 50 50 50 50 50 50 50 50 Slowest Speed 50 | 50 50 50 50 50 50 50 50 50 50 50 50 50 50 50 50 50 50 Overloaded Moves . | . . . . . . . . . . . . . . . . . . Propulsion Burnouts . | . . . . . . . . . . . . . . . . . . Robots Hopped . | . . . . . . . . . . . . . . . . . . Potential Cave-ins . | . . . . . . . . . . . . . . . . . . Cave-ins Triggered . | . . . . . . . . . . . . . . . . . . Exploration Rate (%) 30 | 2 62 72 60 28 18 12 38 13 19 4 26 1 90 14 9 81 8 Regions Visited 17 Branch Regions 6 Pre-discovered Areas 2 | . . . 1 1 . . . . . . . . . . . . . Known Exits Taken 4 | . . . . . 1 . . . 1 . . 1 . . 1 . . Unknown Exits Taken 11 | 1 1 1 1 1 . 1 1 1 . 1 1 . . 1 . . . Scrap Searched 2 | . . 2 . . . . . . . . . . . . . . . Spaces Dug . | . . . . . . . . . . . . . . . . . . Terrain Destroyed . | . . . . . . . . . . . . . . . . . . Melee . | . . . . . . . . . . . . . . . . . . Projectile . | . . . . . . . . . . . . . . . . . . AOE . | . . . . . . . . . . . . . . . . . . Terrain Rammed . | . . . . . . . . . . . . . . . . . . Walls Destroyed . | . . . . . . . . . . . . . . . . . . Machines Disabled . | . . . . . . . . . . . . . . . . . . Actions | -11 -10 -10 -10 -9 -8 -7 -7 -7 -6 -5 -5 -4 -4 -3 -2 -2 -1 --------- Run | Yrd Mat Min Exi Min Mat Fac Low Low Fac Fac Ext Fac DSF Res Res DSF Acc Total 3730 | 18 296 281 226 128 115 318 162 90 486 93 98 30 139 299 536 55 360 Wait 267 | . 24 25 . 21 3 35 . . 12 . . . 3 16 119 . 9 Move 3433 | 18 268 256 225 106 110 281 162 90 473 93 97 30 124 282 415 55 348 Hop . | . . . . . . . . . . . . . . . . . . Pick Up 3 | . 1 . 1 . . . . . . . . . . . 1 . . Fast Attach 8 | . 1 . . 1 . 2 . . 1 . 1 . . 1 1 . . Attach 2 | . . . . . . . . . . . . . . . . . 2 Detach . | . . . . . . . . . . . . . . . . . . Swap . | . . . . . . . . . . . . . . . . . . Drop . | . . . . . . . . . . . . . . . . . . Fire 1 | . . . . . . . . . . . . . . . . . 1 Melee . | . . . . . . . . . . . . . . . . . . Ram 4 | . 2 . . . 2 . . . . . . . . . . . . Kick . | . . . . . . . . . . . . . . . . . . Crush . | . . . . . . . . . . . . . . . . . . Escape Stasis 12 | . . . . . . . . . . . . . 12 . . . . Rewire . | . . . . . . . . . . . . . . . . . . Trap . | . . . . . . . . . . . . . . . . . . Miscellaneous . | . . . . . . . . . . . . . . . . . . Route ------- -11/Scrapyard -10/Materials (discovered 2 exits: [*Mat] / [*Min]) -10/Mines (discovered 3 exits: [*Mat] / *Exi / [*Sub]) -10/Exiles -9/Mines -8/Materials (discovered 3 exits: *Fac x3) -7/Factory -7/Lower Caves -7/Lower Caves -6/Factory (discovered 2 exits: *Fac x2) -5/Factory -5/Extension -4/Factory -4/DSF -3/Research (discovered 2 exits: *Res / *Tes) -2/Research -2/DSF -1/Access History --------- Turn | Location | Event 2 | -11/Scrapyard | Discovered new exit (range 16) 10 | -11/Scrapyard | Entered Materials 74 | -10/Materials | Discovered new exit (range 7) 169 | -10/Materials | Discovered new exit (range 9) 173 | -10/Materials | Entered Mines 200 | -10/Mines | Assembled infested the area 226 | -10/Mines | Core integrity fell below 50% 230 | -10/Mines | Learned Materials security intel 253 | -10/Mines | Discovered new exit (range 13) 274 | -10/Mines | Discovered new exit (range 11) 303 | -10/Mines | Build established: Mutant 321 | -10/Mines | A weapon hastily lodged in a ceiling crevice suddenly fell to the ground 325 | -10/Mines | Deemed a non-threat by the Exiles lab entrance 325 | -10/Mines | Discovered new exit (range 5) 327 | -10/Mines | Entered Exiles 339 | -10/Exiles | Met 8R-AWN 349 | -10/Exiles | Met EX-HEX 362 | -10/Exiles | Met EX-BIN 368 | -10/Exiles | Aligned with FarCom system 368 | -10/Exiles | Given EX-Vault access code 380 | -10/Exiles | Opened EX-Vault 383 | -10/Exiles | Found Skeleton Box 394 | -10/Exiles | Warned to stay clear of 0b10 Research branches 408 | -10/Exiles | Met EX-DEC 411 | -10/Exiles | Learned location of Zion (-6) 435 | -10/Exiles | Discovered new exit (range 14) 441 | -10/Exiles | Left Exiles lab with Skeleton Box 441 | -10/Exiles | Entered Mines 451 | -9/Mines | Found a Scrap Suit stashed away for nefarious purposes 458 | -9/Mines | Learned location of Storage (-9) 471 | -9/Mines | Met a Derelict who couldn't figure out how to use a Trap Extractor 515 | -9/Mines | Discovered new exit (range 5) 517 | -9/Mines | Entered Materials 517 | -8/Materials | Evolved 4 slots: Utility x4 533 | -8/Materials | Identified exit to Factory 578 | -8/Materials | Entered Factory 578 | -7/Factory | Evolved 2 slots: Utility x2 754 | -7/Factory | Discovered new exit (range 7) 757 | -7/Factory | Entered Lower Caves 764 | -7/Lower Caves | Attracted the attention of an 0b10 checkpoint 829 | -7/Lower Caves | Learned location of 1 exit from Factory 837 | -7/Lower Caves | Discovered new exit (range 4) 839 | -7/Lower Caves | Entered another Lower Caves area 843 | -7/Lower Caves | Learned location of 1 exit from Factory 878 | -7/Lower Caves | Discovered new exit (range 14) 885 | -7/Lower Caves | Entered Factory 885 | -6/Factory | Evolved 2 slots: Utility x2 886 | -6/Factory | Identified exit to Factory 1136 | -6/Factory | Entered another Factory area 1136 | -5/Factory | Evolved 2 slots: Utility x2 1176 | -5/Factory | Discovered new exit (range 16) 1183 | -5/Factory | Entered Extension 1224 | -5/Extension | Spotted B-75 Beast 1226 | -5/Extension | Spotted B-75 Beast 1231 | -5/Extension | Discovered new exit (range 3) 1234 | -5/Extension | Entered Factory 1234 | -4/Factory | Evolved 2 slots: Utility x2 1237 | -4/Factory | Identified exit to DSF 1250 | -4/Factory | Entered DSF 1291 | -4/DSF | Additional patrols routed to DSF 1309 | -4/DSF | Discovered new exit (range 15) 1312 | -4/DSF | Core integrity fell below 50% 1328 | -4/DSF | Core integrity fell below 20% 1328 | -4/DSF | Entered Research 1328 | -3/Research | Evolved 2 slots: Utility x2 1329 | -3/Research | Lost 3 parts (3u) 1394 | -3/Research | Discovered new exit (range 10) 1405 | -3/Research | Identified exit to Testing 1481 | -3/Research | Discovered new exit (range 12) 1487 | -3/Research | Entered another Research area 1487 | -2/Research | Evolved 2 slots: Utility x2 1817 | -2/Research | Identified exit to DSF 1817 | -2/Research | Entered DSF 1836 | -2/DSF | Additional patrols routed to DSF 1838 | -2/DSF | Discovered new exit (range 16) 1841 | -2/DSF | Core integrity fell below 50% 1845 | -2/DSF | Entered Access 1845 | -1/Access | Evolved 2 slots: Utility x2 2011 | -1/Access | Spotted B-99 Colossus 2012 | -1/Access | Spotted B-99 Colossus 2019 | -1/Access | Core integrity fell below 50% 2026 | -1/Access | Core integrity fell below 20% 2032 | -1/Access | Destroyed by B-99 Colossus with Multirail Last Messages --------------- 02019_ Slug penetrates Reinforced Barrier. 02021_ Penetrated by Slug. 02021_ Slug penetrates Reinforced Barrier. 02021_ Penetrated by Slug. 02021_ Slug penetrates Reinforced Barrier. 02022_ Sealed Heavy Doors breached. 02022_ Enh. Nova Cannon destroyed. 02022_ Penetrated by Slug. 02022_ Slug penetrates Reinforced Barrier. 02023_ Penetrated by Slug. 02023_ Slug penetrates Sealed Heavy Doors. 02025_ Penetrated by Slug. 02025_ Slug penetrates Reinforced Barrier. 02025_ Penetrated by Slug. 02025_ Slug penetrates Reinforced Barrier. 02025_ Slug penetrates Sealed Heavy Doors. 02027_ Slug penetrates B-99 Colossus. 02028_ Penetrated by Slug. 02029_ Slug penetrates Sealed Heavy Doors. 02032_ Penetrated by Slug. Map ----- +----------------------------------------------------+ | ??????????????????????# #######?????# | | ??????????????######??# #?????# | | ??????????????# [[ ??# #?????# | | ??????????????# [[ ?# ####### | | ??????????????# [ ?# | | ??????????????# # ########+##+############## | | ??????????????# # # ! #????????????# | | ??????????????# + + #????????????# | | ??????????????# ### """S""" #????????????# | | ??????????????# ??# """ """ #????????????# | | ??????????????# ???# #????????????# | | ??????????????# ???# #????????????# | | ??????????????# ????# ! #????????????# | | ??????????????######????#############????????????# | | ?????????????????????????????????????????????????# | | ?????????????????????????#########???????????????# | | ?????????????????????????" #???????????????# | | ?????????????????????????" BB #???????????????# | | ?????????????????????????" BB ##########++##### | | ?????????????????????????" % | | ?????????????????????????" | | ?????????????????????????" p % | | ?????????????????????????" % | | ?????????????????????????"pBB #;#+########## | | ????????????????????????""%BB ; # | | ????????????????????????"@% p Y%; !!+ | | ????????????????????????########## |%#### | | ?????????????????????????????????# *#??? | | ????????????????????????????????# #??? | | ????????????????????????????????## #??? | | ?????????????????????????????????# #??? | | ?????????????????????????????????# "" #??? | | ?????????????????????????????????# ""T""" #??? | | ?????????????????????????????????# """"" #??? | | ?????????????????????????????????# ? #??? | | ?????????????????????????????????# ??? #??? | | ?????????????????????????????????#######???#+#???? | | ???????????????????????????????????????????# #???? | | ???????????????????????????????????????????# #???? | | ???????????????????????????????????????????# ##### | | ???????????????????????????????????????????# | | ???????????????????????????????????????????# | | ???????????????????????????????????????????# | | ???????????????????????????????????????????# | | ???????????????????????????????????????????# ##### | | ???????????????????????????????????????????# #???# | | ???????????????????????????????????????????# #???# | | ???????????????????????????????????????????# #???# | | ??????????????????????????????????????????? #???? | | ??????????????????????????????????????????? #???? | +----------------------------------------------------+ Best States ------------- Heat Dissipation 52 Energy Generation 5 Energy Capacity 100 Matter Stores 300 Matter Capacity 300 Sight Range 16 Terrain Scan Density 210 Utility Shielding 33 Evasion (%) 50 Offensive Hacking 14 Defensive Hacking 10 Item Schematics ----------------- None Robot Schematics ------------------ None Fabricated ------------ Nothing Repaired ---------- Nothing Studied --------- None Alien Tech Used ----------------- None Achievements -------------- None Challenges ------------ None Game ------ Seed SuperquantumCarbideGuard Manual? 0 Play Time 00:28:09 Cumulative 271.1 hours Start 2026.09.06 @ 22:56:08 End 2026.09.06 @ 23:23:44 Sessions 1 Manual Loads 0 Difficulty Rogue Special Mode None Game No. 174 Rogue 174 Adventurer 0 Explorer 0 Win Type - Total 6 Types 2/0/2/1/0/0/0/1/0/0 Lore% 63 Gallery% 75 Achievement% 59 Wizard Run 0 Options --------- Layout 2 ASCII 0 Keyboard 0 Movement Mouse Keybinds 0 Fullscreen 1 Font 32/Cog Map View 50x44 Zoom Use 0% Tactical HUD 1 Map Filters NONE Filters NONE Steam 1 RUN: 003c9fed-9340-4a51-bb4e-392a6fc3d335